[Event "*** Titled Tuesday Blitz AM"]
[Site "Chess.com"]
[Date "2020.01.07"]
[Round "1"]
[White "Arystanner"]
[Black "NemtsevIgor"]
[Result "1-0"]
[WhiteElo "2716"]
[BlackElo "2352"]
[TimeControl "180+2"]
[EndTime "9:08:12 PST"]
[Termination "Arystanner won by checkmate"]

1. c4 {[%clk 0:03:01.5]} 1... c6 {[%clk 0:03:00]} 2. e4 {[%clk 0:03:01.2]} 2...
d6 {[%clk 0:02:59.8]} 3. d4 {[%clk 0:03:01.6]} 3... h6 {[%clk 0:03:00.8]} 4. Nc3
{[%clk 0:03:02.4]} 4... Nd7 {[%clk 0:03:01.1]} 5. Be3 {[%clk 0:03:03.6]} 5... g5
{[%clk 0:03:02]} 6. Nge2 {[%clk 0:03:04.8]} 6... Bg7 {[%clk 0:03:01.5]} 7. Qd2
{[%clk 0:03:05.9]} 7... Ngf6 {[%clk 0:03:00.4]} 8. f3 {[%clk 0:03:06.1]} 8...
Qa5 {[%clk 0:02:59.8]} 9. h4 {[%clk 0:03:04.6]} 9... g4 {[%clk 0:02:58.7]} 10.
O-O-O {[%clk 0:03:04.6]} 10... a6 {[%clk 0:02:59.1]} 11. Kb1 {[%clk 0:03:04.2]}
11... b5 {[%clk 0:02:59.5]} 12. Ng3 {[%clk 0:02:58.1]} 12... Nb6 {[%clk
0:02:48.5]} 13. e5 {[%clk 0:02:49.7]} 13... Nfd7 {[%clk 0:02:25.9]} 14. Nf5
{[%clk 0:02:40.7]} 14... Bf8 {[%clk 0:02:19.9]} 15. exd6 {[%clk 0:02:41.2]}
15... bxc4 {[%clk 0:02:07.7]} 16. fxg4 {[%clk 0:02:34]} 16... e6 {[%clk
0:01:44.3]} 17. Ne7 {[%clk 0:02:13.5]} 17... Bb7 {[%clk 0:01:34.3]} 18. d5
{[%clk 0:01:55]} 18... cxd5 {[%clk 0:01:24.2]} 19. Bd4 {[%clk 0:01:27.9]} 19...
Rh7 {[%clk 0:01:13.1]} 20. Be2 {[%clk 0:01:15.3]} 20... Rg7 {[%clk 0:00:53.1]}
21. Rhf1 {[%clk 0:01:07.9]} 21... Rb8 {[%clk 0:00:47]} 22. Bxg7 {[%clk
0:01:03.7]} 22... Bxg7 {[%clk 0:00:47.9]} 23. Ncxd5 {[%clk 0:01:01.9]} 23... c3
{[%clk 0:00:34.5]} 24. Nc7+ {[%clk 0:01:02]} 24... Kd8 {[%clk 0:00:34.2]} 25.
Qe3 {[%clk 0:00:46.1]} 25... c2+ {[%clk 0:00:30.1]} 26. Kxc2 {[%clk 0:00:42.8]}
26... Nd5 {[%clk 0:00:23.4]} 27. Nexd5 {[%clk 0:00:34.9]} 27... Bxd5 {[%clk
0:00:24.4]} 28. Rb1 {[%clk 0:00:24.2]} 28... Qxa2 {[%clk 0:00:17]} 29. Nxd5
{[%clk 0:00:24.8]} 29... Rxb2+ {[%clk 0:00:17.9]} 30. Rxb2 {[%clk 0:00:26]}
30... Qxb2+ {[%clk 0:00:19.1]} 31. Kd1 {[%clk 0:00:27.2]} 31... Qb1+ {[%clk
0:00:18]} 32. Kd2 {[%clk 0:00:26.1]} 32... Qb2+ {[%clk 0:00:18.8]} 33. Ke1
{[%clk 0:00:27.5]} 33... exd5 {[%clk 0:00:19.7]} 34. Qe7+ {[%clk 0:00:28.2]}
34... Kc8 {[%clk 0:00:21.1]} 35. Qe8+ {[%clk 0:00:29.8]} 35... Kb7 {[%clk
0:00:21.5]} 36. Qxd7+ {[%clk 0:00:31.5]} 36... Kb6 {[%clk 0:00:22.8]} 37. Qc7#
{[%clk 0:00:33]} 1-0

[Event "*** Titled Tuesday Blitz AM"]
[Site "Chess.com"]
[Date "2020.01.07"]
[Round "1"]
[White "ChessQueen"]
[Black "Saitama_Hero"]
[Result "1-0"]
[WhiteElo "2672"]
[BlackElo "2299"]
[TimeControl "180+2"]
[EndTime "9:08:12 PST"]
[Termination "ChessQueen won by checkmate"]

1. e4 {[%clk 0:03:00.8]} 1... e5 {[%clk 0:02:57.9]} 2. Nf3 {[%clk 0:03:00.9]}
2... Nc6 {[%clk 0:02:59.3]} 3. Bb5 {[%clk 0:03:00.8]} 3... a6 {[%clk 0:03:00.6]}
4. Ba4 {[%clk 0:03:01.4]} 4... Nf6 {[%clk 0:03:00.3]} 5. d4 {[%clk 0:03:00.3]}
5... exd4 {[%clk 0:02:34.6]} 6. O-O {[%clk 0:02:55.6]} 6... Bc5 {[%clk 0:02:26]}
7. c3 {[%clk 0:02:44.3]} 7... dxc3 {[%clk 0:02:23.7]} 8. Nxc3 {[%clk 0:02:41.4]}
8... O-O {[%clk 0:02:07.1]} 9. e5 {[%clk 0:02:32]} 9... Ng4 {[%clk 0:01:53.5]}
10. Qd5 {[%clk 0:02:23.6]} 10... Qe7 {[%clk 0:01:54.7]} 11. Bg5 {[%clk
0:02:18.9]} 11... Bxf2+ {[%clk 0:01:48.4]} 12. Rxf2 {[%clk 0:02:18.2]} 12... Qb4
{[%clk 0:01:43.4]} 13. Re2 {[%clk 0:02:06.3]} 13... Qb6+ {[%clk 0:01:36.5]} 14.
Kf1 {[%clk 0:01:49.6]} 14... d6 {[%clk 0:01:26.7]} 15. Bxc6 {[%clk 0:01:23]}
15... bxc6 {[%clk 0:01:25.7]} 16. Qb3 {[%clk 0:01:14.7]} 16... Qa7 {[%clk
0:00:53.5]} 17. h3 {[%clk 0:01:09.3]} 17... Be6 {[%clk 0:00:50.3]} 18. Qa4
{[%clk 0:01:08]} 18... Nxe5 {[%clk 0:00:42.6]} 19. Nxe5 {[%clk 0:01:08.6]} 19...
dxe5 {[%clk 0:00:44.5]} 20. Rxe5 {[%clk 0:01:06]} 20... f6 {[%clk 0:00:42]} 21.
Re3 {[%clk 0:00:24.8]} 21... fxg5+ {[%clk 0:00:41.4]} 22. Ke2 {[%clk 0:00:26]}
22... Rae8 {[%clk 0:00:37.1]} 23. Re1 {[%clk 0:00:25.3]} 23... Bg4+ {[%clk
0:00:25.2]} 24. Kd3 {[%clk 0:00:24.1]} 24... Bf5+ {[%clk 0:00:21.9]} 25. Kd2
{[%clk 0:00:24.5]} 25... Rxe3 {[%clk 0:00:19.9]} 26. Rxe3 {[%clk 0:00:25.8]}
26... Rd8+ {[%clk 0:00:20.7]} 27. Ke2 {[%clk 0:00:27.2]} 27... Qb6 {[%clk
0:00:14.3]} 28. Qc4+ {[%clk 0:00:19.4]} 28... Kh8 {[%clk 0:00:13.1]} 29. b3
{[%clk 0:00:20.8]} 29... h6 {[%clk 0:00:13.4]} 30. Qf7 {[%clk 0:00:20.5]} 30...
Qc5 {[%clk 0:00:08.5]} 31. Re7 {[%clk 0:00:18.5]} 31... Qxc3 {[%clk 0:00:06.7]}
32. Qxf5 {[%clk 0:00:18.5]} 32... Rd2+ {[%clk 0:00:07]} 33. Kf1 {[%clk
0:00:19.2]} 33... Qc1+ {[%clk 0:00:05.4]} 34. Re1 {[%clk 0:00:19.8]} 34... Qb2
{[%clk 0:00:06.6]} 35. Re8# {[%clk 0:00:18.7]} 1-0

[Event "*** Titled Tuesday Blitz AM"]
[Site "Chess.com"]
[Date "2020.01.07"]
[Round "1"]
[White "JozefKneht"]
[Black "Keranke"]
[Result "0-1"]
[WhiteElo "2385"]
[BlackElo "2746"]
[TimeControl "180+2"]
[EndTime "9:08:14 PST"]
[Termination "Keranke won by resignation"]

1. e4 {[%clk 0:02:57]} 1... g6 {[%clk 0:02:52.7]} 2. d4 {[%clk 0:02:54.6]} 2...
Bg7 {[%clk 0:02:52.5]} 3. Nc3 {[%clk 0:02:55.4]} 3... d6 {[%clk 0:02:53.3]} 4.
f4 {[%clk 0:02:55.9]} 4... a6 {[%clk 0:02:54.1]} 5. Nf3 {[%clk 0:02:56.2]} 5...
b5 {[%clk 0:02:55]} 6. a4 {[%clk 0:02:52.2]} 6... b4 {[%clk 0:02:55.7]} 7. Nd5
{[%clk 0:02:53.4]} 7... Bb7 {[%clk 0:02:52.4]} 8. Bd3 {[%clk 0:02:52.2]} 8...
Bxd5 {[%clk 0:02:52.7]} 9. exd5 {[%clk 0:02:52.5]} 9... Nf6 {[%clk 0:02:54.4]}
10. Bc4 {[%clk 0:02:49.6]} 10... a5 {[%clk 0:02:52.3]} 11. c3 {[%clk 0:02:42]}
11... bxc3 {[%clk 0:02:51]} 12. bxc3 {[%clk 0:02:38.1]} 12... O-O {[%clk
0:02:51.6]} 13. O-O {[%clk 0:02:39]} 13... c6 {[%clk 0:02:47.9]} 14. dxc6 {[%clk
0:02:38.3]} 14... Nxc6 {[%clk 0:02:49.8]} 15. Re1 {[%clk 0:02:38.6]} 15... e6
{[%clk 0:02:45.9]} 16. Ba3 {[%clk 0:02:38.2]} 16... Ne7 {[%clk 0:02:27.8]} 17.
Qd2 {[%clk 0:02:30.5]} 17... Qc7 {[%clk 0:02:09.3]} 18. Bf1 {[%clk 0:02:27.7]}
18... d5 {[%clk 0:02:01.8]} 19. Ne5 {[%clk 0:02:25.1]} 19... Rfc8 {[%clk
0:01:59.1]} 20. Bb5 {[%clk 0:02:23.7]} 20... Nf5 {[%clk 0:01:50.3]} 21. Rac1
{[%clk 0:02:23.7]} 21... Ne4 {[%clk 0:01:49.5]} 22. Qd3 {[%clk 0:02:19.5]} 22...
Qb6 {[%clk 0:01:27.9]} 23. Nd7 {[%clk 0:02:15.2]} 23... Qa7 {[%clk 0:01:15.7]}
24. Nc5 {[%clk 0:02:15.5]} 24... Nxc5 {[%clk 0:01:13.7]} 25. Bxc5 {[%clk
0:02:15.3]} 25... Rxc5 {[%clk 0:01:08.7]} 26. dxc5 {[%clk 0:02:15.1]} 26...
Qxc5+ {[%clk 0:01:10.6]} 27. Kh1 {[%clk 0:02:16.5]} 27... Rc8 {[%clk 0:01:11.8]}
28. c4 {[%clk 0:02:16]} 28... Nd6 {[%clk 0:01:01.6]} 29. Qe3 {[%clk 0:02:04.5]}
29... Bd4 {[%clk 0:00:59.7]} 30. Qf3 {[%clk 0:02:01.9]} 30... dxc4 {[%clk
0:00:38.4]} 31. Red1 {[%clk 0:02:02.5]} 31... Bb2 {[%clk 0:00:33.1]} 32. Rc2
{[%clk 0:01:53.7]} 32... c3 {[%clk 0:00:31.8]} 33. Bd3 {[%clk 0:01:49.6]} 33...
Qb4 {[%clk 0:00:29]} 34. g4 {[%clk 0:01:46.8]} 34... Qxa4 {[%clk 0:00:28]} 35.
f5 {[%clk 0:01:47.7]} 35... exf5 {[%clk 0:00:27.7]} 36. gxf5 {[%clk 0:01:48.3]}
36... Qc6 {[%clk 0:00:25.3]} 37. Qxc6 {[%clk 0:01:44.1]} 37... Rxc6 {[%clk
0:00:27.2]} 38. fxg6 {[%clk 0:01:45.1]} 38... hxg6 {[%clk 0:00:27.7]} 39. Re2
{[%clk 0:01:41.8]} 39... a4 {[%clk 0:00:26.3]} 40. Bb1 {[%clk 0:01:38.6]} 40...
a3 {[%clk 0:00:26.5]} 41. Kg2 {[%clk 0:01:34.3]} 41... Nc4 {[%clk 0:00:17.5]}
42. Ba2 {[%clk 0:01:32.7]} 42... Nd2 {[%clk 0:00:17.6]} 43. Rdxd2 {[%clk
0:01:33.4]} 43... cxd2 {[%clk 0:00:18.9]} 44. Rxd2 {[%clk 0:01:35.3]} 44... Rc7
{[%clk 0:00:19.8]} 45. Re2 {[%clk 0:01:36.6]} 45... Kg7 {[%clk 0:00:21.1]} 46.
h3 {[%clk 0:01:37.8]} 46... f5 {[%clk 0:00:21.9]} 47. Re6 {[%clk 0:01:37.7]}
47... Bd4 {[%clk 0:00:19.6]} 48. Re2 {[%clk 0:01:39.6]} 48... Kf6 {[%clk
0:00:20.1]} 49. h4 {[%clk 0:01:38.7]} 49... Rb7 {[%clk 0:00:19.7]} 50. Re6+
{[%clk 0:01:37.9]} 50... Kg7 {[%clk 0:00:20.9]} 51. Kf3 {[%clk 0:01:39.1]} 51...
Rb2 {[%clk 0:00:21.3]} 52. Re2 {[%clk 0:01:40.1]} 52... Kh6 {[%clk 0:00:21.1]}
53. Rxb2 {[%clk 0:01:39.6]} 53... axb2 {[%clk 0:00:23]} 54. Kg3 {[%clk
0:01:39.3]} 54... Be5+ {[%clk 0:00:24]} 55. Kh3 {[%clk 0:01:38.7]} 55... Bf6
{[%clk 0:00:25.7]} 56. Bb1 {[%clk 0:01:40.1]} 56... Kh5 {[%clk 0:00:26]} 0-1

[Event "*** Titled Tuesday Blitz AM"]
[Site "Chess.com"]
[Date "2020.01.07"]
[Round "1"]
[White "nouma78"]
[Black "Indianlad"]
[Result "1/2-1/2"]
[WhiteElo "2521"]
[BlackElo "2932"]
[TimeControl "180+2"]
[EndTime "9:08:19 PST"]
[Termination "Game drawn - insufficient material"]

1. d4 {[%clk 0:02:59.1]} 1... Nf6 {[%clk 0:03:00.4]} 2. Bg5 {[%clk 0:02:58.5]}
2... e6 {[%clk 0:02:57.5]} 3. e3 {[%clk 0:02:58.7]} 3... b6 {[%clk 0:02:56.4]}
4. c3 {[%clk 0:02:56.7]} 4... Bb7 {[%clk 0:02:57.9]} 5. Nd2 {[%clk 0:02:57.1]}
5... h6 {[%clk 0:02:59.4]} 6. Bh4 {[%clk 0:02:57.7]} 6... d6 {[%clk 0:03:01.1]}
7. Ngf3 {[%clk 0:02:57.8]} 7... Nbd7 {[%clk 0:03:02.2]} 8. Bd3 {[%clk
0:02:58.6]} 8... g5 {[%clk 0:03:03.2]} 9. Bg3 {[%clk 0:02:59.3]} 9... Nh5 {[%clk
0:03:04.8]} 10. Qe2 {[%clk 0:02:54.7]} 10... Bg7 {[%clk 0:03:01.6]} 11. Ba6
{[%clk 0:02:49.3]} 11... Qc8 {[%clk 0:03:01.5]} 12. Bxb7 {[%clk 0:02:49.4]}
12... Qxb7 {[%clk 0:03:03.4]} 13. e4 {[%clk 0:02:43.9]} 13... Ndf6 {[%clk
0:02:48.7]} 14. O-O-O {[%clk 0:02:38.4]} 14... O-O-O {[%clk 0:02:45.6]} 15. Ne1
{[%clk 0:02:38.8]} 15... Nxg3 {[%clk 0:02:41]} 16. hxg3 {[%clk 0:02:39.6]} 16...
c5 {[%clk 0:02:42.4]} 17. Kb1 {[%clk 0:02:33.2]} 17... cxd4 {[%clk 0:02:42.8]}
18. cxd4 {[%clk 0:02:34.4]} 18... Kb8 {[%clk 0:02:44.5]} 19. f3 {[%clk 0:02:28]}
19... Rc8 {[%clk 0:02:43.3]} 20. Nb3 {[%clk 0:02:28.6]} 20... Rc7 {[%clk
0:02:35.9]} 21. Nc2 {[%clk 0:02:28.4]} 21... a5 {[%clk 0:02:35]} 22. Qb5 {[%clk
0:02:26.8]} 22... Rhc8 {[%clk 0:02:35.4]} 23. Ne3 {[%clk 0:02:27.8]} 23... Nxe4
{[%clk 0:02:14.6]} 24. fxe4 {[%clk 0:02:22.2]} 24... Qxe4+ {[%clk 0:02:15.5]}
25. Qd3 {[%clk 0:02:16.8]} 25... Qxd3+ {[%clk 0:01:48.5]} 26. Rxd3 {[%clk
0:02:16.6]} 26... a4 {[%clk 0:01:50.2]} 27. Nc1 {[%clk 0:02:08.3]} 27... d5
{[%clk 0:01:51]} 28. Ne2 {[%clk 0:02:08.3]} 28... b5 {[%clk 0:01:46.1]} 29. a3
{[%clk 0:02:06.8]} 29... Kb7 {[%clk 0:01:46.6]} 30. g4 {[%clk 0:01:51.7]} 30...
Ka6 {[%clk 0:01:42.7]} 31. Rc1 {[%clk 0:01:37.1]} 31... Rxc1+ {[%clk 0:01:43.4]}
32. Nxc1 {[%clk 0:01:38.1]} 32... Rh8 {[%clk 0:01:38.7]} 33. Nc2 {[%clk
0:01:31.5]} 33... h5 {[%clk 0:01:39.4]} 34. gxh5 {[%clk 0:01:26.7]} 34... Rxh5
{[%clk 0:01:41.3]} 35. Rh3 {[%clk 0:01:22.9]} 35... Rxh3 {[%clk 0:01:40.1]} 36.
gxh3 {[%clk 0:01:24.8]} 36... f5 {[%clk 0:01:41.6]} 37. Nd3 {[%clk 0:01:23]}
37... Kb6 {[%clk 0:01:34.1]} 38. Nc5 {[%clk 0:01:18.9]} 38... g4 {[%clk
0:01:32.4]} 39. hxg4 {[%clk 0:01:15.1]} 39... fxg4 {[%clk 0:01:34.3]} 40. Nxe6
{[%clk 0:01:14.5]} 40... Bh6 {[%clk 0:01:35.8]} 41. Ne1 {[%clk 0:01:12.6]} 41...
Kc6 {[%clk 0:01:35.4]} 42. Ng2 {[%clk 0:01:12.4]} 42... Kd6 {[%clk 0:01:35.6]}
43. Nef4 {[%clk 0:01:13]} 43... Bg7 {[%clk 0:01:36.8]} 44. Ne2 {[%clk
0:01:13.6]} 44... Bh6 {[%clk 0:01:38.5]} 45. Kc2 {[%clk 0:01:14.5]} 45... Kc6
{[%clk 0:01:40]} 46. Kd3 {[%clk 0:01:15.5]} 46... b4 {[%clk 0:01:40.9]} 47. Ne3
{[%clk 0:00:52.6]} 47... bxa3 {[%clk 0:01:33.9]} 48. bxa3 {[%clk 0:00:53.8]}
48... Bf8 {[%clk 0:01:35.6]} 49. Nxg4 {[%clk 0:00:52.8]} 49... Bxa3 {[%clk
0:01:36.5]} 50. Nc3 {[%clk 0:00:51.1]} 50... Bb2 {[%clk 0:01:31.4]} 51. Nxa4
{[%clk 0:00:50.2]} 51... Bxd4 {[%clk 0:01:32.2]} 52. Kxd4 {[%clk 0:00:51.4]}
52... Kb5 {[%clk 0:01:33.4]} 53. Nc3+ {[%clk 0:00:52.2]} 53... Kb4 {[%clk
0:01:34.2]} 54. Ne5 {[%clk 0:00:52.5]} 54... Kb3 {[%clk 0:01:35.1]} 55. Nd3
{[%clk 0:00:53.4]} 55... Kc2 {[%clk 0:01:35.8]} 56. Nb5 {[%clk 0:00:51.8]} 56...
Kd2 {[%clk 0:01:37]} 57. Nf4 {[%clk 0:00:52]} 57... Ke1 {[%clk 0:01:35.8]} 58.
Nxd5 {[%clk 0:00:32.7]} 1/2-1/2

[Event "*** Titled Tuesday Blitz AM"]
[Site "Chess.com"]
[Date "2020.01.07"]
[Round "1"]
[White "gpeloui"]
[Black "GMHess"]
[Result "1-0"]
[WhiteElo "2400"]
[BlackElo "2721"]
[TimeControl "180+2"]
[EndTime "9:08:22 PST"]
[Termination "gpeloui won by resignation"]

1. e4 {[%clk 0:02:58.5]} 1... g6 {[%clk 0:02:48.7]} 2. d4 {[%clk 0:02:57]} 2...
Bg7 {[%clk 0:02:50.6]} 3. Nc3 {[%clk 0:02:58.4]} 3... c6 {[%clk 0:02:46]} 4. Nf3
{[%clk 0:02:56.4]} 4... b5 {[%clk 0:02:46.9]} 5. a3 {[%clk 0:02:56.4]} 5... d6
{[%clk 0:02:47.4]} 6. h3 {[%clk 0:02:56.6]} 6... Nd7 {[%clk 0:02:47.7]} 7. Be3
{[%clk 0:02:55.6]} 7... a6 {[%clk 0:02:48.4]} 8. Qd2 {[%clk 0:02:57.1]} 8... Nb6
{[%clk 0:02:48.2]} 9. Bd3 {[%clk 0:02:56.6]} 9... h6 {[%clk 0:02:45.5]} 10. O-O
{[%clk 0:02:56.8]} 10... g5 {[%clk 0:02:46.9]} 11. Rad1 {[%clk 0:02:53.4]} 11...
Nf6 {[%clk 0:02:43.2]} 12. Rfe1 {[%clk 0:02:45]} 12... g4 {[%clk 0:02:43.7]} 13.
hxg4 {[%clk 0:02:45.4]} 13... Nxg4 {[%clk 0:02:45.3]} 14. Bf4 {[%clk 0:02:46.4]}
14... e5 {[%clk 0:02:36.3]} 15. dxe5 {[%clk 0:02:39.8]} 15... dxe5 {[%clk
0:02:38.2]} 16. Bg3 {[%clk 0:02:40.1]} 16... Be6 {[%clk 0:02:25]} 17. b3 {[%clk
0:02:40.6]} 17... Qe7 {[%clk 0:02:23.7]} 18. Qc1 {[%clk 0:02:30.8]} 18... h5
{[%clk 0:02:13.3]} 19. Nh4 {[%clk 0:02:31]} 19... Bf6 {[%clk 0:01:45.6]} 20. Nf5
{[%clk 0:02:20.9]} 20... Bxf5 {[%clk 0:01:44.2]} 21. exf5 {[%clk 0:02:22.8]}
21... h4 {[%clk 0:01:45.6]} 22. Bh2 {[%clk 0:02:24.1]} 22... h3 {[%clk
0:01:25.1]} 23. Be4 {[%clk 0:02:12.8]} 23... Qc5 {[%clk 0:01:14.7]} 24. Qd2
{[%clk 0:01:43.7]} 24... hxg2 {[%clk 0:01:14.1]} 25. Bg3 {[%clk 0:01:42.5]}
25... Rd8 {[%clk 0:00:50.3]} 26. Qe2 {[%clk 0:01:42.9]} 26... Qxc3 {[%clk
0:00:51]} 27. Qxg4 {[%clk 0:01:42.7]} 27... Nd5 {[%clk 0:00:14.5]} 28. Kxg2
{[%clk 0:01:29.2]} 28... Ke7 {[%clk 0:00:09.8]} 29. Qf3 {[%clk 0:01:15.7]} 29...
Qxf3+ {[%clk 0:00:07.2]} 30. Kxf3 {[%clk 0:01:17.6]} 30... Nc3 {[%clk
0:00:05.8]} 31. Rxd8 {[%clk 0:01:16.8]} 31... Rxd8 {[%clk 0:00:07.7]} 32. Bxc6
{[%clk 0:01:15.7]} 32... Rd2 {[%clk 0:00:08.5]} 33. Bb7 {[%clk 0:00:57.2]} 33...
Rxc2 {[%clk 0:00:09.7]} 34. Bxe5 {[%clk 0:00:55.1]} 34... Bxe5 {[%clk
0:00:11.6]} 35. Rxe5+ {[%clk 0:00:56.4]} 35... Kd6 {[%clk 0:00:05.8]} 36. Re3
{[%clk 0:00:58.3]} 36... Nb1 {[%clk 0:00:03.8]} 37. a4 {[%clk 0:00:58.4]} 37...
b4 {[%clk 0:00:03.9]} 38. Bxa6 {[%clk 0:00:58.6]} 38... Rc3 {[%clk 0:00:05.2]}
39. Bc4 {[%clk 0:00:58.3]} 39... Nd2+ {[%clk 0:00:05.7]} 40. Ke2 {[%clk
0:00:58.5]} 40... Rxe3+ {[%clk 0:00:04.3]} 41. fxe3 {[%clk 0:00:58.7]} 41...
Nxc4 {[%clk 0:00:05.9]} 42. bxc4 {[%clk 0:01:00.6]} 42... Kc5 {[%clk 0:00:07.1]}
43. Kd3 {[%clk 0:01:01.5]} 43... Kc6 {[%clk 0:00:07]} 44. e4 {[%clk 0:01:02.2]}
44... f6 {[%clk 0:00:07.9]} 45. a5 {[%clk 0:01:03.2]} 45... Kc5 {[%clk
0:00:07.9]} 46. Kc2 {[%clk 0:01:03.4]} 1-0

[Event "*** Titled Tuesday Blitz AM"]
[Site "Chess.com"]
[Date "2020.01.07"]
[Round "1"]
[White "TBergh98"]
[Black "Boundless_Strike"]
[Result "0-1"]
[WhiteElo "2364"]
[BlackElo "2722"]
[TimeControl "180+2"]
[EndTime "9:08:22 PST"]
[Termination "Boundless_Strike won by resignation"]

1. d4 {[%clk 0:03:00.5]} 1... f5 {[%clk 0:02:55.9]} 2. e4 {[%clk 0:03:01.2]}
2... fxe4 {[%clk 0:02:55.4]} 3. Nc3 {[%clk 0:03:02.8]} 3... Nf6 {[%clk
0:02:57.3]} 4. Bg5 {[%clk 0:03:04.4]} 4... Nc6 {[%clk 0:02:56.7]} 5. d5 {[%clk
0:03:05.6]} 5... Ne5 {[%clk 0:02:57.1]} 6. Qe2 {[%clk 0:03:07]} 6... c6 {[%clk
0:02:49.1]} 7. Nxe4 {[%clk 0:03:00.3]} 7... cxd5 {[%clk 0:02:38.5]} 8. Nxf6+
{[%clk 0:02:49.1]} 8... exf6 {[%clk 0:02:38]} 9. f4 {[%clk 0:02:43.7]} 9... Be7
{[%clk 0:02:09.7]} 10. fxe5 {[%clk 0:02:41.4]} 10... fxg5 {[%clk 0:02:09.9]} 11.
O-O-O {[%clk 0:02:22.4]} 11... Qa5 {[%clk 0:01:55.2]} 12. Kb1 {[%clk 0:02:17.8]}
12... O-O {[%clk 0:01:50.3]} 13. Nf3 {[%clk 0:02:03.4]} 13... d6 {[%clk
0:01:27.3]} 14. h4 {[%clk 0:01:52.7]} 14... g4 {[%clk 0:01:16.7]} 15. Nd4 {[%clk
0:01:21.8]} 15... dxe5 {[%clk 0:01:10.8]} 16. Qxe5 {[%clk 0:01:23.7]} 16... Bf6
{[%clk 0:01:11.3]} 17. Qe3 {[%clk 0:01:13.5]} 17... Bd7 {[%clk 0:00:42]} 18. c3
{[%clk 0:00:54.3]} 18... Rae8 {[%clk 0:00:28.7]} 19. Qg3 {[%clk 0:00:48.3]}
19... Bxd4 {[%clk 0:00:24.2]} 20. Rxd4 {[%clk 0:00:48.7]} 20... Bf5+ {[%clk
0:00:24.1]} 21. Ka1 {[%clk 0:00:47.6]} 21... Qc7 {[%clk 0:00:14.7]} 22. Qf2
{[%clk 0:00:34.9]} 22... g3 {[%clk 0:00:08.8]} 23. Qd2 {[%clk 0:00:31.3]} 23...
Be4 {[%clk 0:00:10.1]} 24. Bd3 {[%clk 0:00:29.6]} 24... Rf2 {[%clk 0:00:03]} 25.
Qe3 {[%clk 0:00:26]} 25... Qf7 {[%clk 0:00:01.9]} 26. a3 {[%clk 0:00:22.8]}
26... Bxd3 {[%clk 0:00:03.1]} 27. Qxd3 {[%clk 0:00:24.1]} 27... Rxg2 {[%clk
0:00:02.9]} 28. Rxd5 {[%clk 0:00:24.7]} 28... Rf2 {[%clk 0:00:04.2]} 29. Rg1
{[%clk 0:00:24]} 29... g2 {[%clk 0:00:05.3]} 30. Ka2 {[%clk 0:00:23.9]} 30...
Rf5 {[%clk 0:00:06.4]} 31. c4 {[%clk 0:00:24.9]} 31... Rxd5 {[%clk 0:00:07.2]}
32. cxd5 {[%clk 0:00:26.8]} 32... Rd8 {[%clk 0:00:08.7]} 33. Rxg2 {[%clk
0:00:27.5]} 33... Qxd5+ {[%clk 0:00:10.6]} 34. Qxd5+ {[%clk 0:00:28.4]} 34...
Rxd5 {[%clk 0:00:12.5]} 35. Rg4 {[%clk 0:00:30.3]} 35... h5 {[%clk 0:00:13.5]}
36. Kb3 {[%clk 0:00:32.2]} 36... hxg4 {[%clk 0:00:14.5]} 0-1

[Event "*** Titled Tuesday Blitz AM"]
[Site "Chess.com"]
[Date "2020.01.07"]
[Round "1"]
[White "gemarin"]
[Black "Sashadav97"]
[Result "0-1"]
[WhiteElo "2032"]
[BlackElo "2547"]
[TimeControl "180+2"]
[EndTime "9:08:22 PST"]
[Termination "Sashadav97 won on time"]

1. d4 {[%clk 0:03:01.4]} 1... Nf6 {[%clk 0:03:00.5]} 2. c4 {[%clk 0:03:01.7]}
2... e6 {[%clk 0:03:01.8]} 3. Nf3 {[%clk 0:03:01]} 3... d5 {[%clk 0:03:02.3]} 4.
Nc3 {[%clk 0:03:00.9]} 4... Nbd7 {[%clk 0:03:01.6]} 5. Bg5 {[%clk 0:03:00.9]}
5... h6 {[%clk 0:02:58.3]} 6. Bh4 {[%clk 0:03:01.1]} 6... c6 {[%clk 0:02:59.3]}
7. e3 {[%clk 0:03:00.8]} 7... g5 {[%clk 0:03:00.5]} 8. Bg3 {[%clk 0:03:01]} 8...
Nh5 {[%clk 0:03:01.5]} 9. Be5 {[%clk 0:02:39.8]} 9... Ng7 {[%clk 0:02:57.8]} 10.
Bg3 {[%clk 0:02:30.4]} 10... Nf5 {[%clk 0:02:58.5]} 11. Bd3 {[%clk 0:02:26.8]}
11... Nxg3 {[%clk 0:02:59.3]} 12. hxg3 {[%clk 0:02:27.3]} 12... Bg7 {[%clk
0:03:00.8]} 13. Rc1 {[%clk 0:02:17.4]} 13... a6 {[%clk 0:02:58.4]} 14. cxd5
{[%clk 0:02:13.7]} 14... exd5 {[%clk 0:02:53.7]} 15. Bb1 {[%clk 0:02:11.8]}
15... Qe7 {[%clk 0:02:47.5]} 16. Qd3 {[%clk 0:02:09.6]} 16... Nf6 {[%clk
0:02:40.7]} 17. Ne5 {[%clk 0:02:07.8]} 17... Ng4 {[%clk 0:02:40.8]} 18. f4
{[%clk 0:01:48.4]} 18... Nxe5 {[%clk 0:02:39.3]} 19. fxe5 {[%clk 0:01:48.7]}
19... Be6 {[%clk 0:02:33.6]} 20. O-O {[%clk 0:01:47.4]} 20... h5 {[%clk
0:02:32.8]} 21. e4 {[%clk 0:01:41]} 21... O-O-O {[%clk 0:02:26.1]} 22. exd5
{[%clk 0:01:41.3]} 22... Bxd5 {[%clk 0:02:26.5]} 23. Nxd5 {[%clk 0:01:29.6]}
23... Rxd5 {[%clk 0:02:28.4]} 24. Qf5+ {[%clk 0:01:21.2]} 24... Rd7 {[%clk
0:02:27.2]} 25. d5 {[%clk 0:01:06.5]} 25... Kb8 {[%clk 0:01:39]} 26. dxc6 {[%clk
0:01:05.3]} 26... bxc6 {[%clk 0:01:40.9]} 27. Rxc6 {[%clk 0:00:57.5]} 27... Bxe5
{[%clk 0:01:41.2]} 28. Be4 {[%clk 0:00:30.5]} 28... Rhd8 {[%clk 0:01:11.5]} 29.
Rb6+ {[%clk 0:00:28.7]} 29... Ka7 {[%clk 0:01:11.2]} 30. Rb3 {[%clk 0:00:17]}
30... Rd1 {[%clk 0:01:11.7]} 31. Rb7+ {[%clk 0:00:13.4]} 31... Qxb7 {[%clk
0:01:12.4]} 32. Bxb7 {[%clk 0:00:13.6]} 32... Bd4+ {[%clk 0:01:13]} 33. Kh2
{[%clk 0:00:13.8]} 33... Rxf1 {[%clk 0:01:13.9]} 34. Bf3 {[%clk 0:00:11]} 34...
Bg1+ {[%clk 0:01:09.6]} 35. Kh1 {[%clk 0:00:12.2]} 35... Bb6+ {[%clk 0:00:48.2]}
36. Kh2 {[%clk 0:00:12.4]} 36... Rc1 {[%clk 0:00:49.2]} 37. Qxf7+ {[%clk
0:00:12.5]} 37... Rc7 {[%clk 0:00:49.9]} 38. Qxh5 {[%clk 0:00:12.6]} 38... Rdd7
{[%clk 0:00:48.9]} 39. Be4 {[%clk 0:00:13.3]} 39... Re7 {[%clk 0:00:49.5]} 40.
Qf3 {[%clk 0:00:12]} 40... Rh7+ {[%clk 0:00:48.4]} 41. Bxh7 {[%clk 0:00:08.9]}
41... Rxh7+ {[%clk 0:00:50.3]} 0-1